Cogmind - Beta 13 @@@ ROGUE MODE // 2024.07.08 @ 00:24:32 Player: ThatBishHoly Result: Destroyed by G-47 Trooper with Particle Gun Performance ------------- Evolutions (1) 500 Regions Visited (3) 600 Robots Destroyed (9) 45 Value Destroyed (236) 236 Prototype IDs (0) 0 Alien Tech Used (0) 0 Bonus (0) 0 TOTAL SCORE: 1381 Bonus ------- None Cogmind --------- Core Integrity 0/400 Matter 285/300 Energy 81/100 System Corruption 0% Temperature Cool (10) Movement Walking (260) Ox2 Location -9/Materials Parts ------- > --- POWER (1) -------- (None) > --- PROPULSION (4) --- Aluminum Leg > --- UTILITY (2) ------ Large Storage Unit > --- WEAPON (2) ------- Mining Claw > --- INVENTORY (15) --- Medium Matter Pod (38) Sensor Array Tractor Beam EM Pulse Gun Beam Cannon Mining Claw Peak State ------------ > --- POWER ------------ Ion Engine > --- PROPULSION ------- Wheel Wheel > --- UTILITY ---------- Large Storage Unit Sensor Array > --- WEAPON ----------- Light EM Pulse Cannon Autogun > --- INVENTORY -------- Medium Matter Pod Sensor Array Tractor Beam EM Pulse Gun EM Pulse Gun Beam Cannon Stasis Trap Stasis Trap Stasis Trap Stasis Trap [Rating: 10] Favorites ----------- Power Ion Engine Engine Ion Engine Propulsion Wheel Leg Aluminum Leg Wheel Wheel Utility Large Storage Unit Device Sensor Array Storage Large Storage Unit Weapon EM Pulse Gun Energy Gun EM Pulse Gun Energy Cannon Light EM Pulse Cannon Ballistic Gun Autogun Slashing Weapon Mining Claw Build | -11 -10 -10 -9 ------- Run | Yrd Mat Min Mat Slots Evolved 2 | . . . 2 Power . | . . . . Propulsion 2 | . . . 2 Utility . | . . . . Weapon . | . . . . Parts Attached 14 | 6 2 . 6 Power 1 | 1 . . . Engine 1 | 1 . . . Core . | . . . . Reactor . | . . . . Propulsion 4 | 2 . . 2 Treads . | . . . . Leg 2 | . . . 2 Wheel 2 | 2 . . . Hover . | . . . . Flight . | . . . . Utility 3 | 1 2 . . Device 1 | . 1 . . Storage 2 | 1 1 . . Processor . | . . . . Hackware . | . . . . Protection . | . . . . Artifact . | . . . . Weapon 6 | 2 . . 4 Energy Gun 3 | 2 . . 1 Energy Cannon 1 | . . . 1 Ballistic Gun 1 | . . . 1 Ballistic Cannon . | . . . . Launcher . | . . . . Special Weapon . | . . . . Impact Weapon . | . . . . Slashing Weapon 1 | . . . 1 Piercing Weapon . | . . . . Special Melee Weapon . | . . . . Unidentified Prototypes . | . . . . Parts Lost 8 | . . . 8 Power 1 | . . . 1 Propulsion 3 | . . . 3 Utility 1 | . . . 1 Weapon 3 | . . . 3 Highest Loss Streak 7 | . . . 7 To Critical Strikes . | . . . . Average Slot Usage (%) 73 | . 82 85 58 Engine 11 | . 14 14 7 Wheel 21 | . 28 28 11 Device 10 | . 10 14 9 Storage 13 | . 14 14 11 Energy Gun 9 | . 14 14 1 Energy Cannon 2 | . . . 6 Ballistic Gun 3 | . . . 9 Naked Turns . | . . . . Heaviest Build 33 | 14 28 28 33 Greatest Support 20 | 20 20 20 20 Greatest Overweight (x) 10 | . 1 1 10 Average Overweight (x) 1 | . . 1 2 Largest Inventory Capacity 15 | 8 15 15 15 Average Capacity 13 | 6 13 15 15 Most Carried 11 | 4 3 9 11 Average Carried 5 | . 1 6 8 Final Capacity 15 | 8 15 15 15 Final Carried 9 | . 3 9 6 Class Distribution -------------------- 100% | Mutant Dominant Class ---------------- Mutant | -10/Materials Mutant | -10/Mines Mutant | -9/Materials Resources | -11 -10 -10 -9 ----------- Run | Yrd Mat Min Mat Matter Collected 346 | 242 33 . 71 Remotely . | . . . . Salvage Created 256 | . 60 . 196 Parts 23 | . 5 . 18 Haulers Intercepted 1 | . 1 . . Recyclers Shooed . | . . . . Parts Field Recycled . | . . . . Retrieved Matter . | . . . . Parts Self-Destructed . | . . . . Prevented . | . . . . Kills | -11 -10 -10 -9 ------- Run | Yrd Mat Min Mat Combat Hostiles Destroyed 5 | . . . 5 Guns 1 | . . . 1 AOE 4 | . . . 4 Classes Destroyed 6 | . 1 . 5 Worker 1 | . . . 1 Hauler 1 | . 1 . . Operator 1 | . . . 1 Watcher 1 | . . . 1 Grunt 4 | . . . 4 Sentry 1 | . . . 1 Best Kill Streak 6 | . 1 . 6 Combat Bots Only 5 | . . . 5 Max Kills in Single Turn 5 | . 1 . 5 Gunslinging . | . . . . Exploded 4 | . . . 4 Melee . | . . . . Uniques/NPCs Destroyed . | . . . . Combat | -11 -10 -10 -9 -------- Run | Yrd Mat Min Mat Hostile Shots Fired 108 | . . . 108 Missed 30 | . . . 30 Damage Taken 1112 | . . 1 1111 Core 411 | . . . 411 Absorbed by Shields . | . . . . Core Remaining (%) 100 | 100 . 100 . Volleys Fired 12 | . 2 . 10 Largest 2 | . 1 . 2 Hottest 79 | . 40 . 79 Shots Fired 20 | . 2 . 18 Gun 14 | . 2 . 12 Cannon 6 | . . . 6 Launcher . | . . . . Special . | . . . . Kinetic 8 | . . . 8 Thermal . | . . . . Explosive . | . . . . Electromagnetic 12 | . 2 . 10 Robot Hit Streak 3 | . 1 . 3 Robot Miss Streak 4 | . . . 4 Penetration Max . | . . . . Secondary Targets . | . . . . Shots Hit Robots 8 | . 1 . 7 Core Hits 5 | . 1 . 4 Critical Kills . | . . . . Critical Parts Destroyed . | . . . . Critical Strikes . | . . . . Melee Attacks . | . . . . Impact . | . . . . Slashing . | . . . . Piercing . | . . . . Sneak Attacks . | . . . . Combat Hostiles . | . . . . Follow-up Attacks . | . . . . Damage Inflicted 760 | 1 15 3 741 Guns 96 | . 15 . 81 Cannons 59 | . . . 59 Explosions 601 | . . . 601 Melee . | . . . . Ramming 4 | 1 . 3 . Kinetic 46 | . . . 46 Thermal 601 | . . . 601 Explosive . | . . . . Electromagnetic 109 | . 15 . 94 Impact . | . . . . Slashing . | . . . . Piercing . | . . . . Highest Corruption . | . . . . Average Corruption . | . . . . Corruption Purged . | . . . . Corruption Blocked . | . . . . Overload Shots . | . . . . Overflow Damage 143 | . . . 143 Projectiles . | . . . . Explosions 143 | . . . 143 Melee . | . . . . Knockbacks . | . . . . Impact . | . . . . Kinetic . | . . . . Secondary . | . . . . Self-Inflicted Damage 114 | . . 1 113 Shots 1 | . . . 1 Rammed 2 | 1 . 1 . Targets Rammed 2 | 1 . 1 . Kicked . | . . . . Crushed . | . . . . Highest Temperature 100 | . . . 100 Average Temperature 30 | . . . 30 Received Heat Transfer 525 | . . . 525 Siege Activations . | . . . . Robots Corrupted . | . . . . Combat Hostiles . | . . . . Parts Fried . | . . . . Impact Corruptions . | . . . . Robots Melted . | . . . . Combat Hostiles . | . . . . Parts Melted . | . . . . Heat Transferred 350 | . . . 350 Parts Sabotaged . | . . . . Parts Stolen . | . . . . Parts Stripped . | . . . . Power Chain Reactions 1 | . . . 1 Alert | -11 -10 -10 -9 ------- Run | Yrd Mat Min Mat Peak Influence 222 | . 37 14 222 Initial 14 | . . 14 5 Average 36 | . 22 14 74 Maximum Alert Level 1 | . . . 1 Low Security (%) 96 | 100 100 100 90 Level 1 3 | . . . 9 Level 2 . | . . . . Level 3 . | . . . . Level 4 . | . . . . Level 5 . | . . . . High Security . | . . . . Max Security . | . . . . Squads Dispatched 2 | . 1 . 1 Investigation . | . . . . Extermination . | . . . . Reinforcement 2 | . 1 . 1 Assault . | . . . . Garrison . | . . . . Intercept . | . . . . Searches Triggered . | . . . . Construction Impeded . | . . . . Haulers Reinforced . | . . . . Active Scanning Responses . | . . . . Cargo Convoy Interrupts . | . . . . Stealth | -11 -10 -10 -9 --------- Run | Yrd Mat Min Mat Distress Signals 3 | . . . 3 Communications Jammed . | . . . . Distress Signals . | . . . . Times Spotted 14 | . 1 . 13 Peak Tracking Total 8 | . 1 . 8 Tactical Retreats 3 | . . . 3 Traps | -11 -10 -10 -9 ------- Run | Yrd Mat Min Mat Traps Triggered . | . . . . Indirectly . | . . . . Trap Hack Attempts . | . . . . Triggered . | . . . . Disarmed . | . . . . Reprogrammed . | . . . . Reused 2 | . . . 2 Traps Extracted . | . . . . Installed 2 | . . . 2 Triggered 2 | . . . 2 Most Traps Carried 4 | . . 4 4 Machines | -11 -10 -10 -9 ---------- Run | Yrd Mat Min Mat Machines Disabled 2 | . 1 . 1 Max in Single Turn 1 | . 1 . 1 Machines Repaired . | . . . . Machines Dismantled . | . . . . Machines Sabotaged . | . . . . Overloaded Fab Kills . | . . . . Hacking | -11 -10 -10 -9 --------- Run | Yrd Mat Min Mat Machines Accessed 1 | . 1 . . Terminals 1 | . 1 . . Fabricators . | . . . . Repair Stations . | . . . . Recycling Units . | . . . . Scanalyzers . | . . . . Garrison Access . | . . . . Total Hacks 3 | . 3 . . Successful 1 | . 1 . . Failed 2 | . 2 . . Catastrophic . | . . . . Database Lockouts . | . . . . Manual 1 | . 1 . . Terminals 3 | . 3 . . Fabricators . | . . . . Repair Stations . | . . . . Recycling Units . | . . . . Scanalyzers . | . . . . Garrison Access . | . . . . Terminal Hacks 1 | . 1 . . Record 1 | . 1 . . Fabricator Hacks . | . . . . Repair Station Hacks . | . . . . Recycling Unit Hacks . | . . . . Scanalyzer . | . . . . Garrison Access Hacks . | . . . . Unauthorized Hacks . | . . . . Terminals . | . . . . Fabricators . | . . . . Repair Stations . | . . . . Recycling Units . | . . . . Scanalyzers . | . . . . Garrison Access . | . . . . Data Cores Recovered 1 | . . . 1 Used . | . . . . Hacking Detections 1 | . 1 . . Full Trace Events . | . . . . Feedback Events . | . . . . Feedback Blocked . | . . . . Robot Schematics Acquired . | . . . . Robots Built . | . . . . Authchips . | . . . . Time . | . . . . Total Robot Build Rating . | . . . . Part Schematics Acquired . | . . . . Parts Built . | . . . . Authchips . | . . . . Time . | . . . . Total Part Build Rating . | . . . . Parts Repaired . | . . . . Time . | . . . . Parts Recycled . | . . . . Recycled Matter . | . . . . Retrieved Matter . | . . . . Retrieved Components . | . . . . Parts Scanalyzed . | . . . . Part Schematics Acquired . | . . . . Parts Damaged . | . . . . Bothacking | -11 -10 -10 -9 ------------ Run | Yrd Mat Min Mat Used RIF Installer . | . . . . Robots Hacked . | . . . . Non-combat . | . . . . Combat . | . . . . Robot Hacks Applied . | . . . . Relay Couplers Released . | . . . . Fabnet Peak Effective % . | . . . . Robots Rewired . | . . . . Allies Hacked . | . . . . Hacks Repelled . | . . . . Allies | -11 -10 -10 -9 -------- Run | Yrd Mat Min Mat Total Allies . | . . . . Largest Group . | . . . . Highest-Rated Group . | . . . . Highest-Rated Ally . | . . . . Total Orders . | . . . . Ally Attacks . | . . . . Total Damage . | . . . . Kills . | . . . . Allies Corrupted . | . . . . Allies Melted . | . . . . Intel | -11 -10 -10 -9 ------- Run | Yrd Mat Min Mat Robot Analysis Total . | . . . . Derelict Logs Recovered . | . . . . Drone Launches . | . . . . Drone Recoveries . | . . . . Exploration | -11 -10 -10 -9 ------------- Run | Yrd Mat Min Mat Turns Passed 517 | 52 149 133 183 Spaces Moved 397 | 52 116 133 96 Core 16 | 6 . . 10 Treads . | . . . . Legs 2 | . . . 2 Wheels 379 | 46 116 133 84 Hover . | . . . . Flight . | . . . . Fastest Speed 50 | 50 80 95 95 Average Speed 103 | 76 90 95 146 Slowest Speed 550 | 80 95 95 550 Overloaded Moves . | . . . . Propulsion Burnouts . | . . . . Robots Hopped . | . . . . Cave-ins Triggered . | . . . . Exploration Rate (%) 15 | 4 20 24 14 Regions Visited 3 Branch Regions 1 Pre-discovered Areas . | . . . . Known Exits Taken . | . . . . Unknown Exits Taken 3 | 1 1 1 . Scrap Searched . | . . . . Spaces Dug . | . . . . Terrain Destroyed 27 | . . . 27 Melee . | . . . . Projectile . | . . . . AOE 27 | . . . 27 Terrain Rammed . | . . . . Walls Destroyed . | . . . . Machines Disabled . | . . . . Actions | -11 -10 -10 -9 --------- Run | Yrd Mat Min Mat Total 487 | 64 158 139 126 Wait 32 | . 32 . . Move 395 | 52 115 132 96 Hop . | . . . . Pick Up 24 | 6 5 6 7 Fast Attach . | . . . . Attach 13 | 6 2 . 5 Detach . | . . . . Swap 1 | . . . 1 Drop 7 | . 2 . 5 Fire 12 | . 2 . 10 Melee . | . . . . Ram 1 | . . 1 . Kick . | . . . . Crush . | . . . . Escape Stasis . | . . . . Rewire . | . . . . Trap 2 | . . . 2 Miscellaneous . | . . . . Route ------- -11/Scrapyard -10/Materials -10/Mines -9/Materials History --------- Turn | Location | Event 32 | -11/Scrapyard | Discovered new exit (range 13) 53 | -11/Scrapyard | Entered Materials 185 | -10/Materials | Discovered new exit (range 8) 202 | -10/Materials | Entered Mines 284 | -10/Mines | Found a hidden stash of uninstalled traps 302 | -10/Mines | Build established: Mutant 324 | -10/Mines | Discovered new exit (range 8) 335 | -10/Mines | Entered Materials 335 | -9/Materials | Evolved 2 slots: Propulsion x2 480 | -9/Materials | Core integrity fell below 50% 509 | -9/Materials | Core integrity fell below 20% 518 | -9/Materials | Destroyed by G-47 Trooper with Particle Gun Last Messages --------------- 00498_ K-01 Serf collects debris. 00500_ Acquired 50 matter. 00501_ Fusion Modulator explodes. 00501_ Destroyed Sml. Laser. 00501_ G-34 Mercenary destroyed. 00501_ Destroyed Aluminum Leg. 00501_ G-34 Mercenary destroyed. 00501_ Destroyed Wheel. 00501_ K-01 Serf destroyed. 00501_ Destroyed Sml. Laser. 00501_ G-34 Mercenary destroyed. 00501_ Y-45 Defender destroyed. 00501_ W-16 Scout sends out distress signal. 00506_ K-01 Serf collects debris. 00506_ K-01 Serf destroyed. 00512_ Acquired Aluminum Leg. 00514_ Critical hit (Burn: +37). 00516_ Acquired Aluminum Leg. 00517_ Aluminum Leg destroyed. 00518_ U-05 Engineer lays Concrete. Map ----- +----------------------------------------------------+ | ???????????### #??????????????????????????????? | | ?????#######"# #??????????????????????????????? | | ?????# " #??????????????????????????????? | | ?????# " #??????????????????????????????? | | ?????# " #??????????????????????????????? | | ??######## # #??????????????????????????????? | | ??# # # #??????????????????????????????? | | ??# // # # #?##+###???????????????????????? | | ??# / + ###+### #####???????????????????? | | ??# # ??????????????????? | | ??# & # ??????????????????? | | ??# =# ???? ?????????????? | | ??#/###### ####### #####???? ?????????????? | | ??#&#"""## ######## ##??????##+#?????????????? | | ??# #"T"## # # #?????? Y ??????????????? | | ??# #" "## # !! # #?????? ???????????????? | | # [[[ =!%# !% + #####? ????????????????? | | + [[* !*/ # ; ## ?????????????????? | | # [[ = # "T" #u ;;;;;;;####??????????????? | | ??## # # ; % T #??????????????? | | ???# ######## ; ! #??????????????? | | ???# #??????# ; [ #??????????????? | | ???# #??????# ;= #??????????????? | | ???# #??????# !%%*[ g #??????????????? | | ???# ##### #??????# ; % #??????????????? | | ???# #???# #??????# ;@* #??????????????? | | ???+ #???#####??^???# ;! #??????????????? | | ???# ??????????????# %;;;;;######??????????????? | | ??? ??????????????# =######???????????????????? | | ???# ??????????????# #????????????????????????? | | ???? ??????????????+ #????????????????????????? | | ???? ???????????????# ????????????????????????? | | ???? ???????????????# ????????????????????????? | | ????????????????????# ????????????????????????? | | ????????????????????######???????????????????????? | | ?????????????????????????????????????????????????? | | ?????????????????????????????????????????????????? | | ?????????????????????????????????????????????????? | | ?????????????????????????????????????????????????? | | ?????????????????????????????????????????????????? | | ?????????????????????????????????????????????????? | | ?????????????????????????????????????????????????? | | ?????????????????????????????????????????????????? | | ?????????????????????????????????????????????????? | | ?????????????????????????????????????????????????? | | ?????????????????????????????????????????????????? | | ?????????????????????????????????????????????????? | | ?????????????????????????????????????????????????? | | ?????????????????????????????????????????????????? | | ?????????????????????????????????????????????????? | +----------------------------------------------------+ Best States ------------- Heat Dissipation 28 Energy Generation 10 Energy Capacity 250 Matter Stores 300 Matter Capacity 300 Sight Range 16 Robot Scan Range 14 Terrain Scan Density 10 Evasion (%) 44 Item Schematics ----------------- None Robot Schematics ------------------ None Fabricated ------------ Nothing Alien Tech Used ----------------- None Achievements -------------- None Challenges ------------ None Game ------ Seed MetafieldImprovedRail Manual? 0 Play Time 00:09:02 Cumulative 27.4 hours Start 2024.07.08 @ 00:17:54 End 2024.07.08 @ 00:24:32 Sessions 1 Manual Loads 0 Difficulty Rogue Special Mode None Game No. 86 Rogue 86 Adventurer 0 Explorer 0 Win Type - Total 0 Types 0/0/0/0/0/0/0/0/0 Lore% 17 Gallery% 32 Achievement% 23 Wizard Run 0 Options --------- Layout 1 ASCII 0 Keyboard 0 Movement Arrows Keybinds 0 Fullscreen 1 Font 16/SmallcapsGlow Map View 25x20 Zoom Use 100% Tactical HUD 1 Map Filters NONE Filters NONE Steam SD RUN: a6f39bf9-1f24-4fbb-b91c-1d94adc40eb5